Workbook

Sheet Macro
B2: Directions
B4: 1. | C4: In the report, select a cell that will act as the flag cell to determine if the sheet will be hidden.
C5: In this example, cell A1 contains a formula, where if the sum of the Actual and the Budget total values are equal to 0, then it will flag the sheet to hide.
C6: Note that Tab1 has data so it will not be hidden. Tab 2 does not have data so the flag in cell A1 shows "!" and will be hidden when the macro is run.
B7: 2. | C7: The macro code is in "This Workbook" after hitting Alt+F11. It is hardcoded to cell A1 and will loop through the tabs and hide ones flagged with "!".
C8: Note that if the OSR_ReportComplete name is used, this macro will run automatically after a BI360 Report has been run.

Sheet Tab1
A1: =IF(SUMSQ(I11:J11,I18:J18)<>0,"","!") -> 
B2: Income Statement
B3: Dept: | C3: 100
B4: Period: | C4: 2014-02-01
E5: Month-to-Date | I5: Year-to-Date
B6: Revenue | E6: Actual | F6: Budget | G6: Variance | I6: Actual | J6: Budget | K6: Variance
B7: 4000 | C7: Software Revenue | E7: 4,886 | F7: 4,934 | G7: =E7-F7 -> (48) | I7: 13,708 | J7: 13,199 | K7: =I7-J7 -> 509
B8: 4010 | C8: Service Revenue | E8: 7,561 | F8: 6,378 | G8: =E8-F8 -> 1,183 | I8: 13,510 | J8: 12,743 | K8: =I8-J8 -> 767
B9: 4020 | C9: Renewal Revenue | E9: 7,477 | F9: 7,891 | G9: (414) | I9: 10,123 | J9: 13,675 | K9: (3,552)
B10: 4030 | C10: Other Revenue | E10: 5,944 | F10: 4,381 | G10: 1,563 | I10: 12,248 | J10: 8,540 | K10: 3,708
B11: Total Revenue | E11: =SUM(E7:E10) -> 25,868 | F11: =SUM(F7:F10) -> 23,584 | G11: 2,284 | I11: =SUM(I7:I10) -> 49,589 | J11: =SUM(J7:J10) -> 48,157 | K11: 1,432
B13: Expenses
B14: 6010 | C14: Salary Expenses | E14: 3746 | F14: 4845 | G14: =F14-E14 -> 1,099 | I14: 9710 | J14: 8103 | K14: =J14-I14 -> (1,607)
B15: 6020 | C15: Office Supplies | E15: 4042 | F15: 4123 | G15: =F15-E15 -> 81 | I15: 9862 | J15: 7813 | K15: =J15-I15 -> (2,049)
B16: 6030 | C16: Depreciation Expense | E16: 3087 | F16: 3058 | G16: (29) | I16: 7592 | J16: 8123 | K16: 531
B17: 6040 | C17: Other Expense | E17: 3830 | F17: 3694 | G17: (136) | I17: 7731 | J17: 7127 | K17: (604)
B18: Total Expenses | E18: =SUM(E14:E17) -> 14,705 | F18: =SUM(F14:F17) -> 15,720 | G18: 1,015 | I18: =SUM(I14:I17) -> 34,895 | J18: =SUM(J14:J17) -> 31,166 | K18: (3,729)
B20: Net Income | E20: =E11-E18 -> 11,163 | F20: =F11-F18 -> 7,864 | G20: =E20-F20 -> 3,299 | I20: =I11-I18 -> 14,694 | J20: =J11-J18 -> 16,991 | K20: =I20-J20 -> (2,297)

Sheet Tab2
A1: =IF(SUMSQ(I11:J11,I18:J18)<>0,"","!") -> !
B2: Income Statement
B3: Dept: | C3: 100
B4: Period: | C4: 2014-02-01
E5: Month-to-Date | I5: Year-to-Date
B6: Revenue | E6: Actual | F6: Budget | G6: Variance | I6: Actual | J6: Budget | K6: Variance
B7: 4000 | C7: Software Revenue | E7: 0 | F7: 0 | G7: =E7-F7 -> 0 | I7: 0 | J7: 0 | K7: =I7-J7 -> 0
B8: 4010 | C8: Service Revenue | E8: 0 | F8: 0 | G8: =E8-F8 -> 0 | I8: 0 | J8: 0 | K8: =I8-J8 -> 0
B9: 4020 | C9: Renewal Revenue | E9: 0 | F9: 0 | G9: 0 | I9: 0 | J9: 0 | K9: 0
B10: 4030 | C10: Other Revenue | E10: 0 | F10: 0 | G10: 0 | I10: 0 | J10: 0 | K10: 0
B11: Total Revenue | E11: =SUM(E7:E10) -> 0 | F11: =SUM(F7:F10) -> 0 | G11: 0 | I11: =SUM(I7:I10) -> 0 | J11: =SUM(J7:J10) -> 0 | K11: 0
B13: Expenses
B14: 6010 | C14: Salary Expenses | E14: 0 | F14: 0 | G14: =F14-E14 -> 0 | I14: 0 | J14: 0 | K14: =J14-I14 -> 0
B15: 6020 | C15: Office Supplies | E15: 0 | F15: 0 | G15: =F15-E15 -> 0 | I15: 0 | J15: 0 | K15: =J15-I15 -> 0
B16: 6030 | C16: Depreciation Expense | E16: 0 | F16: 0 | G16: 0 | I16: 0 | J16: 0 | K16: 0
B17: 6040 | C17: Other Expense | E17: 0 | F17: 0 | G17: 0 | I17: 0 | J17: 0 | K17: 0
B18: Total Expenses | E18: =SUM(E14:E17) -> 0 | F18: =SUM(F14:F17) -> 0 | G18: 0 | I18: =SUM(I14:I17) -> 0 | J18: =SUM(J14:J17) -> 0 | K18: 0
B20: Net Income | E20: =E11-E18 -> 0 | F20: =F11-F18 -> 0 | G20: =E20-F20 -> 0 | I20: =I11-I18 -> 0 | J20: =J11-J18 -> 0 | K20: =I20-J20 -> 0
